fUSD/lending_fUSD_20240426
["ID","MTS","AMOUNT","RATE_DAILY","PERIOD"]
[323670494,1714155040546,-531.78,0.00011181,2]
[323670495,1714155040556,-500.0,0.00011181,2]
[323670497,1714155040566,-2075.79,0.00011181,2]
[323670499,1714155040577,-2619.87,0.00011181,2]
[323670501,1714155040586,-1372.17,0.00011181,2]
[323670503,1714155040595,-500.0,0.00011181,2]
[323670505,1714155040604,-522.2,0.00011181,2]
[323670507,1714155040613,-2217.83,0.00011181,2]
[323670509,1714155040622,-500.0,0.00011181,2]
[323670511,1714155040631,-3720.61632625,0.00011181,2]
[323670516,1714155040663,-283.7531272,0.00011181,2]
[323670519,1714155040674,-1625.79054655,0.00011181,2]
[323670522,1714155040683,-5410.93,0.00011181,2]
[323670524,1714155040693,-1583.16,0.00011181,2]
[323670526,1714155040702,-887.86,0.00011181,2]
[323670528,1714155040711,-500.0,0.00011181,2]
[323670530,1714155040720,-500.0,0.00011181,2]
[323670532,1714155040730,-823.43,0.00011181,2]
[323670534,1714155040739,-895.71,0.00011181,2]
[323670536,1714155040748,-500.0,0.00011181,2]
[323670538,1714155040757,-500.0,0.00011181,2]
[323670540,1714155040767,-1311.65,0.00011181,2]
[323670543,1714155040776,-860.82,0.00011181,2]
[323670545,1714155040785,-500.0,0.00011181,2]
[323670547,1714155040795,-968.68,0.00011181,2]
[323670549,1714155040804,-2445.28,0.00011181,2]
[323670551,1714155040814,-1489.36,0.00011181,2]
[323670553,1714155040825,-500.0,0.00011181,2]
[323670555,1714155040833,-500.0,0.00011181,2]
[323670557,1714155040842,-23.33512481,0.00011181,2]
[323670559,1714155040854,-476.66487519,0.00011181,2]
[323670561,1714155040863,-936.77,0.00011181,2]
[323670563,1714155040872,-351.56512481,0.00011181,2]
[323670566,1714155040884,-1340.01178555,0.00011181,2]
[323670568,1714155040896,-651.19754,0.00011181,2]
[323670570,1714155040907,-788.97512811,0.00011181,2]
[323670573,1714155040926,-998.84386033,0.00011181,2]
[323670576,1714155040938,-313.27,0.00011181,2]
[323670578,1714155040949,-35.3265612,0.00011181,2]
[323670580,1714155040958,-2308.76,0.00011181,2]
[323670582,1714155040967,-500.0,0.00011181,2]
[323670584,1714155040977,-500.0,0.00011181,2]
[323670586,1714155040986,-500.0,0.00011181,2]
[323670588,1714155040996,-985.48496706,0.00011181,2]
[323670590,1714155041007,-1377.60908901,0.00011181,2]
[323670632,1714155041392,-1457.85594393,0.00011181,2]
[323670634,1714155041401,-500.0,0.00011181,2]
[323670636,1714155041411,-500.0,0.00011181,2]
[323670638,1714155041420,-500.0,0.00011181,2]
[323670640,1714155041430,-506.65925605,0.00011181,2]
[323670644,1714155041456,-492.31580113,0.00011181,2]
[323670648,1714155041482,-438.19724582,0.00011181,2]
[323670650,1714155041494,-1178.807697,0.00011181,2]
[323670652,1714155041504,-500.0,0.00011181,2]
[323670654,1714155041513,-500.0,0.00011181,2]
[323670656,1714155041523,-500.0,0.00011181,2]
[323670658,1714155041532,-519.73515485,0.00011181,2]
[323670661,1714155041543,-3146.88484515,0.00011181,2]
[323670663,1714155041552,-1079.93274985,0.00011181,2]
[323670702,1714155041900,-907.92725015,0.00011181,2]
[323670704,1714155041910,-2259.74,0.00011181,2]
[323670706,1714155041919,-500.0,0.00011181,2]
[323670708,1714155041929,-500.0,0.00011181,2]
[323670710,1714155041938,-500.0,0.00011181,2]
[323670712,1714155041947,-1555.84348125,0.00011181,2]
[323670740,1714155042896,-1645.73651875,0.00011181,2]
[323670741,1714155042905,-500.0,0.00011181,2]
[323670742,1714155042915,-769.71597117,0.00011181,2]
[323670743,1714155042950,-694.30402883,0.00011181,2]
[323670744,1714155042960,-2565.44587229,0.00011181,2]
[323670745,1714155043005,-478.17412771,0.00011181,2]
[323670746,1714155043014,-8059.18,0.00011181,2]
[323670747,1714155043024,-500.0,0.00011181,2]
[323670748,1714155043033,-649.3,0.00011181,2]
[323670749,1714155043042,-9073.51,0.00011181,2]
[323670750,1714155043051,-500.0,0.00011181,2]
[323670751,1714155043060,-4256.12,0.00011181,2]
[323670752,1714155043070,-500.0,0.00011181,2]
[323670753,1714155043080,-1037.57,0.00011181,2]
[323670754,1714155043090,-683.19,0.00011181,2]
[323670755,1714155043099,-500.0,0.00011181,2]
[323670756,1714155043108,-2665.35,0.00011181,2]
[323670757,1714155043121,-2393.74,0.00011181,2]
[323670758,1714155043130,-500.0,0.00011182,2]
[323670759,1714155043139,-500.0,0.00011182,2]
[323670760,1714155043149,-500.0,0.00011182,2]
[323670761,1714155043159,-500.0,0.00011182,2]
[323670762,1714155043168,-500.0,0.00011182,2]
[323670763,1714155043178,-500.0,0.00011182,2]
[323670764,1714155043187,-500.0,0.00011182,2]
[323670765,1714155043197,-500.0,0.00011182,2]
[323670766,1714155043207,-500.0,0.00011182,2]
[323670767,1714155043216,-500.0,0.00011182,2]
[323670768,1714155043225,-500.0,0.00011182,2]
[323670769,1714155043234,-500.0,0.00011182,2]
[323670770,1714155043243,-311.63,0.00011182,2]
[323670771,1714155043252,-500.0,0.00011182,2]
[323670772,1714155043262,-500.0,0.00011182,2]
[323670773,1714155043272,-500.0,0.00011182,2]
[323670774,1714155043281,-500.0,0.00011182,2]
[323670775,1714155043291,-500.0,0.00011182,2]
[323670776,1714155043300,-500.0,0.00011182,2]
[323670777,1714155043309,-500.0,0.00011182,2]
[323670778,1714155043319,-500.0,0.00011182,2]
[323670779,1714155043328,-500.0,0.00011182,2]
[323670780,1714155043337,-500.0,0.00011182,2]
[323670781,1714155043346,-500.0,0.00011182,2]
[323670782,1714155043355,-500.0,0.00011182,2]
[323670783,1714155043365,-500.0,0.00011182,2]
[323670784,1714155043374,-500.0,0.00011182,2]
[323670785,1714155043383,-500.0,0.00011182,2]
[323670786,1714155043393,-500.0,0.00011182,2]
[323670787,1714155043402,-500.0,0.00011182,2]
[323670788,1714155043411,-500.0,0.00011182,2]
[323670789,1714155043420,-500.0,0.00011182,2]
[323670794,1714155043673,-500.0,0.00011182,2]
[323670795,1714155043683,-516.79584585,0.00011182,2]
[323670796,1714155043692,-1219.44,0.00011182,2]
[323670797,1714155043702,-500.0,0.00011182,2]
[323670798,1714155043711,-500.0,0.00011182,2]
[323670799,1714155043721,-500.0,0.00011182,2]
[323670800,1714155043730,-500.0,0.00011182,2]
[323670801,1714155043739,-500.0,0.00011182,2]
[323670802,1714155043748,-500.0,0.00011182,2]
[323670803,1714155043757,-500.0,0.00011182,2]
[323670804,1714155043766,-500.0,0.00011182,2]
[323670805,1714155043775,-690.73,0.00011182,2]
[323670806,1714155043784,-500.0,0.00011182,2]
[323670807,1714155043793,-728.46,0.00011182,2]
[323670808,1714155043802,-500.0,0.00011182,2]
[323670809,1714155043811,-500.0,0.00011182,2]
[323670810,1714155043820,-645.97,0.00011182,2]
[323670811,1714155043831,-500.0,0.00011182,2]
[323670812,1714155043840,-500.0,0.00011182,2]
[323670813,1714155043849,-1393.73,0.00011182,2]
[323670814,1714155043858,-598.18,0.00011182,2]
[323670815,1714155043867,-688.67,0.00011182,2]
[323670816,1714155043876,-500.0,0.00011182,2]
[323670817,1714155043886,-500.0,0.00011182,2]
[323670818,1714155043895,-944.87,0.00011182,2]
[323670819,1714155043905,-500.0,0.00011182,2]
[323670820,1714155043914,-940.61,0.00011182,2]
[323670821,1714155043923,-546.68,0.00011182,2]
[323670822,1714155043932,-500.0,0.00011182,2]
[323670823,1714155043941,-441.79748502,0.00011182,2]
[323670824,1714155043950,-799.83,0.00011182,2]
[323670825,1714155043960,-500.0,0.00011182,2]
[323670826,1714155043969,-697.39,0.00011182,2]
[323670827,1714155043978,-500.0,0.00011182,2]
[323670828,1714155043987,-500.0,0.00011182,2]
[323670829,1714155043996,-500.0,0.00011182,2]
[323670830,1714155044006,-500.0,0.00011182,2]
[323670831,1714155044016,-1064.36,0.00011182,2]
[323670832,1714155044025,-832.43,0.00011182,2]
[323670833,1714155044033,-1104.2,0.00011182,2]
[323670834,1714155044044,-169.3566176,0.00011182,2]
[323670835,1714155044053,-500.0,0.00011182,2]
[323670836,1714155044062,-500.0,0.00011182,2]
[323670837,1714155044071,-500.0,0.00011182,2]
[323670838,1714155044083,-718.45,0.00011182,2]
[323670839,1714155044092,-500.0,0.00011182,2]
[323670840,1714155044101,-500.0,0.00011182,2]
[323670841,1714155044111,-269.0951941,0.00011182,2]
[323670842,1714155044125,-500.0,0.00011182,2]
[323670843,1714155044134,-562.51,0.00011182,2]
[323670844,1714155044143,-865.83,0.00011182,2]
[323670845,1714155044152,-500.0,0.00011182,2]
[323670846,1714155044162,-500.0,0.00011182,2]
[323670847,1714155044171,-1581.91,0.00011182,2]
[323670848,1714155044181,-500.0,0.00011182,2]
[323670849,1714155044190,-1960.85,0.00011182,2]
[323670850,1714155044200,-500.0,0.00011182,2]
[323670851,1714155044211,-520.36,0.00011182,2]
[323670852,1714155044220,-773.64,0.00011182,2]
[323670853,1714155044229,-500.0,0.00011182,2]
[323670854,1714155044238,-682.87,0.00011182,2]
[323670855,1714155044247,-2023.73,0.00011182,2]
[323670856,1714155044257,-4273.96,0.00011182,2]
[323670857,1714155044266,-3413.05,0.00011182,2]
[323670858,1714155044275,-500.0,0.00011182,2]
[323670859,1714155044285,-2020.94,0.00011182,2]
[323670860,1714155044294,-500.0,0.00011182,2]
[323670861,1714155044303,-3609.87,0.00011182,2]
[323670862,1714155044313,-1067.4,0.00011182,2]
[323670863,1714155044323,-1627.2,0.00011182,2]
[323670864,1714155044335,-4313.83,0.00011182,2]
[323670865,1714155044344,-500.0,0.00011182,2]
[323670866,1714155044353,-5634.47,0.00011182,2]
[323670867,1714155044363,-1213.14,0.00011182,2]
[323670868,1714155044373,-500.0,0.00011182,2]
[323670869,1714155044382,-1620.84,0.00011182,2]
[323670870,1714155044391,-500.0,0.00011182,2]
[323670871,1714155044401,-586.89,0.00011182,2]
[323670872,1714155044410,-935.06,0.00011182,2]
[323670873,1714155044420,-3062.82,0.00011182,2]
[323670874,1714155044429,-1282.0,0.00011182,2]
[323670875,1714155044439,-1906.86,0.00011182,2]
[323670876,1714155044448,-1193.41,0.00011182,2]
[323670877,1714155044458,-500.0,0.00011182,2]
[323670878,1714155044467,-500.0,0.00011182,2]
[323670879,1714155044476,-1286.34,0.00011182,2]
[323670880,1714155044486,-1246.16,0.00011182,2]
[323670881,1714155044495,-500.0,0.00011182,2]
[323670882,1714155044504,-500.0,0.00011182,2]
[323670883,1714155044513,-500.0,0.00011182,2]
[323670884,1714155044522,-2629.33,0.00011182,2]
[323670885,1714155044532,-1238.97,0.00011182,2]
[323670886,1714155044541,-743.51,0.00011182,2]
[323670887,1714155044550,-1221.4,0.00011182,2]
[323670888,1714155044559,-515.66,0.00011182,2]
[323670889,1714155044569,-702.98,0.00011182,2]
[323670890,1714155044579,-7763.08,0.00011182,2]
[323670891,1714155044588,-473.05233594,0.00011183,2]
[323670892,1714155044597,-500.0,0.00011183,2]
[323670893,1714155044606,-500.0,0.00011183,2]
[323670894,1714155044615,-500.0,0.00011183,2]
[323670895,1714155044626,-323.43871975,0.00011183,2]
[323670896,1714155044635,-500.0,0.00011183,2]
[323670897,1714155044645,-500.0,0.00011183,2]
[323670898,1714155044654,-500.0,0.00011183,2]
[323670899,1714155044663,-500.0,0.00011183,2]
[323670900,1714155044672,-500.0,0.00011183,2]
[323670901,1714155044681,-500.0,0.00011183,2]
[323670902,1714155044690,-501.22660929,0.00011183,2]
[323670903,1714155044699,-466.02966834,0.00011183,2]
[323670904,1714155044708,-152.60338069,0.00011183,2]
[323670905,1714155044717,-500.0,0.00011183,2]
[323670906,1714155044726,-500.0,0.00011183,2]
[323670907,1714155044735,-500.0,0.00011183,2]
[323670908,1714155044745,-500.0,0.00011183,2]
[323670909,1714155044755,-500.0,0.00011183,2]
[323670910,1714155044764,-498.48115019,0.00011183,2]
[323670911,1714155044774,-500.0,0.00011183,2]
[323670912,1714155044783,-500.0,0.00011183,2]
[323670913,1714155044792,-329.80256939,0.00011183,2]
[323670914,1714155044801,-500.0,0.00011183,2]
[323670915,1714155044810,-197.04574191,0.00011183,2]
[323670916,1714155044819,-500.0,0.00011183,2]
[323670917,1714155044829,-504.42755718,0.00011183,2]
[323670918,1714155044838,-500.0,0.00011183,2]
[323670919,1714155044858,-500.0,0.00011183,2]
[323670920,1714155044868,-342.96774986,0.00011183,2]
[323670921,1714155044878,-562.7437747,0.00011183,2]
[323670922,1714155044887,-500.0,0.00011183,2]
[323670923,1714155044897,-500.0,0.00011183,2]
[323670924,1714155044907,-500.0,0.00011183,2]
[323670925,1714155044916,-500.0,0.00011183,2]
[323670926,1714155044925,-500.0,0.00011183,2]
[323670927,1714155044935,-500.0,0.00011183,2]
[323670928,1714155044944,-500.0,0.00011183,2]
[323670929,1714155044954,-500.0,0.00011183,2]
[323670930,1714155044963,-170.78356453,0.00011257,2]
[323670931,1714155044973,-500.0,0.00011284,2]
[323670932,1714155044982,-53590.38585583,0.00011288,2]
[323670933,1714155045013,-337.70102785,0.00011288,2]
[323670934,1714155045025,-502.19723086,0.00011288,2]
[323670935,1714155045084,-0.00353191,0.00011288,2]
[323670936,1714155045095,-355.9692418,0.00011288,2]
[323670937,1714155045114,-2739.25066835,0.00011288,2]
[323670950,1714155045864,-382.35704848,0.00011288,2]
[323670952,1714155045918,-1583.72672779,0.00011181,2]
[323670953,1714155045972,-1401.51573069,0.00011181,2]
[323670954,1714155046082,-1303.01658382,0.00011181,2]
[323670955,1714155046134,-799.6109577,0.00011181,2]
[323670956,1714155046143,-5704.7890423,0.00011288,2]
[323670957,1714155046189,-2290.4328904,0.00011288,2]
[323670959,1714155057428,500.0,0.00011081,2]
[323670960,1714155081573,155.0,0.00011081,2]
[323670961,1714155091056,946.75081137,0.00011081,2]
[323670962,1714155091080,4000.0,0.00011081,2]
[323670963,1714155091101,4000.0,0.00011081,2]
[323670964,1714155091122,4000.0,0.00011081,2]
[323670965,1714155091147,2548.34026134,0.00011081,2]
[323670966,1714155117357,1451.65973866,0.00011081,2]
[323670967,1714155117381,4000.0,0.00011081,2]
[323670968,1714155164554,-513.95,8.6e-05,2]
[323670969,1714155164578,-513.95,0.00010864,2]
[323670970,1714155164600,-414.36839064,0.00011078,2]
[323670971,1714155164622,-339.0,0.00011079,2]
[323670972,1714155164642,-2218.73160936,0.0001108,2]
[323670973,1714155165151,-4000.0,0.0001108,2]
[323670974,1714155165811,-4000.0,0.0001108,2]
[323670975,1714155166671,-4000.0,0.0001108,2]
[323670976,1714155173507,-4000.0,0.0001108,2]
[323670977,1714155173945,-4000.0,0.0001108,2]
[323670978,1714155187574,-555.84642728,0.0001108,2]
[323670979,1714155281083,151.04,0.00010502,2]
[323670980,1714155281149,151.04,0.00010515,2]
[323670981,1714155281219,151.04,0.00010528,2]
[323670982,1714155281588,151.04,0.00010541,2]
[323670983,1714155281823,151.04,0.00010554,2]
[323670984,1714155317950,392.10188214,0.00010554,2]
[323670985,1714155328420,155.0,8.384e-05,2]
[323670986,1714155335786,261.40125476,0.00010554,2]
[323670987,1714155344507,155.0,8.384e-05,2]
[323670988,1714155353793,217.83437897,0.00010554,2]
[323670989,1714155360373,155.0,8.384e-05,2]
[323670990,1714155365597,1442.93,0.0001047,2]
[323670991,1714155371783,24.68605685,0.0001,2]
[323670992,1714155371804,130.31394315,0.0001,2]
[323670993,1714155376370,155.0,8.384e-05,2]
[323670994,1714155389785,155.0,0.0001,2]
[323670995,1714155397594,155.0,8.384e-05,2]
[323670996,1714155407891,155.0,0.0001,2]
[323670997,1714155416812,250.0,0.00010447,2]
[323670998,1714155420378,155.0,8.384e-05,2]
[323670999,1714155425798,155.0,0.0001,2]
[323671000,1714155438386,155.0,8.384e-05,2]
[323671001,1714155447841,155.0,0.0001,2]
[323671002,1714155453191,164.15,0.00010435,2]
[323671003,1714155462393,155.0,8.384e-05,2]
[323671004,1714155465802,155.0,0.0001,2]
[323671005,1714155481796,155.0,0.00010435,2]
[323671006,1714155486382,155.0,8.384e-05,2]
[323671007,1714155487441,422.83236406,9.392e-05,2]
[323671008,1714155499801,222.00627378,0.00010435,2]
[323671009,1714155505427,422.83236406,9.392e-05,2]
[323671010,1714155506393,155.0,8.384e-05,2]
[323671011,1714155511606,372.86505495,0.00010435,2]
[323671012,1714155511627,4000.0,0.00010435,2]
[323671013,1714155511647,3952.17494505,0.00010435,2]
[323671014,1714155523393,47.82505495,9.392e-05,2]
[323671015,1714155523413,375.00730911,9.392e-05,2]
[323671016,1714155526626,666.54,0.00010441,2]
[323671017,1714155530404,155.0,8.384e-05,2]
[323671018,1714155545397,422.83236406,9.392e-05,2]
[323671019,1714155546399,155.0,8.384e-05,2]
[323671020,1714155561393,422.83236406,9.392e-05,2]
[323671021,1714155566404,155.0,8.384e-05,2]
[323671022,1714155573290,1647.78796277,0.00010435,2]
[323671023,1714155573312,4000.0,0.00010435,2]
[323671024,1714155573333,4000.0,0.00010435,2]
[323671025,1714155573358,4000.0,0.00010435,2]
[323671026,1714155573379,2460.99586604,0.00010435,2]
[323671027,1714155581401,422.83236406,9.392e-05,2]
[323671028,1714155582406,155.0,8.384e-05,2]
[323671029,1714155592230,151.65,0.00010525,2]
[323671030,1714155592441,151.65,0.00010571,2]
[323671031,1714155592660,151.65,0.00010617,2]
[323671032,1714155592879,151.65,0.00010662,2]
[323671033,1714155593120,151.65,0.00010708,2]
[323671034,1714155593372,151.65,0.00010754,2]
[323671035,1714155593594,51.2717699,0.000108,2]
[323671036,1714155593616,100.3782301,0.000108,2]
[323671037,1714155593828,151.65,0.00010845,2]
[323671038,1714155594310,151.65,0.00010891,2]
[323671039,1714155594395,151.65,0.00010937,2]
[323671040,1714155594516,151.65,0.00010982,2]
[323671041,1714155594943,151.65,0.00011028,2]
[323671042,1714155595188,151.65,0.00011074,2]
[323671043,1714155598404,155.0,8.384e-05,2]
[323671044,1714155599398,422.83236406,7.546e-05,2]
[323671045,1714155599580,2411.88940584,0.00010447,2]
[323671046,1714155599603,3621.78059416,0.00010447,2]
[323671050,1714155615402,378.21940584,7.546e-05,2]
[323671051,1714155615428,44.61295822,7.546e-05,2]
[323671052,1714155616927,155.0,8.384e-05,2]
[323671053,1714155631404,422.83236406,7.546e-05,2]
[323671054,1714155634408,155.0,8.384e-05,2]
[323671055,1714155648384,-4000.0,0.00011079,2]
[323671056,1714155649405,422.83236406,7.546e-05,2]
[323671057,1714155649438,-4000.0,0.00011079,2]
[323671058,1714155650269,-4000.0,0.00011079,2]
[323671059,1714155650408,155.0,8.384e-05,2]
[323671060,1714155651363,-4000.0,0.00011079,2]
[323671061,1714155654072,-4000.0,0.00011079,2]
[323671062,1714155654574,504.04,8.488e-05,2]
[323671063,1714155654901,-504.04,0.00010752,2]
[323671064,1714155654923,-2843.16181193,0.00011079,2]
[323671065,1714155654944,-150.0,0.0001108,2]
[323671066,1714155654965,-502.79818807,0.0001108,2]
[323671067,1714155656305,-4000.0,0.0001108,2]
[323671068,1714155657143,-4000.0,0.0001108,2]
[323671069,1714155658713,-2067.50591193,0.0001108,2]
[323671070,1714155667415,422.83236406,7.546e-05,2]
[323671071,1714155668419,155.0,8.384e-05,2]
[323671072,1714155684345,1354.66172401,0.0001108,2]
[323671073,1714155684368,430.13680526,0.0001108,2]
[323671074,1714155685406,422.83236406,7.546e-05,2]
[323671075,1714155686415,155.0,8.384e-05,2]
[323671077,1714155699634,527.14142415,0.0001108,2]
[323671079,1714155704422,155.0,0.000101,2]
[323671080,1714155705403,422.83236406,7.546e-05,2]
[323671081,1714155717352,524.1523562,0.0001108,2]
[323671082,1714155720560,419.407149,0.00011025,2]
[323671083,1714155722424,155.0,0.000101,2]
[323671084,1714155722594,-4000.0,0.00011081,2]
[323671085,1714155722997,-4000.0,0.00011081,2]
[323671086,1714155723408,422.83236406,7.546e-05,2]
[323671087,1714155724559,-4000.0,0.00011081,2]
[323671088,1714155725511,-4000.0,0.00011081,2]
[323671089,1714155726773,-1903.59616874,0.00011081,2]
[323671092,1714155742608,155.0,0.000101,2]
[323671094,1714155745411,252.31063371,7.546e-05,2]
[323671095,1714155750461,1689.09319755,0.0001108,2]
[323671096,1714155761384,365.66517321,0.00011079,2]
[323671097,1714155764911,-155.0,0.000101,2]
[323671098,1714155764934,-1309.92705546,0.00011079,2]
[323671099,1714155764956,-667.14357273,0.0001108,2]
[323671101,1714155768452,1867.92937181,0.00010099,2]
[323671102,1714155768476,4000.0,0.00010099,2]
[323671103,1714155768500,1475.03146888,0.00010099,2]
[323671104,1714155770124,2017.54617872,0.00010981,2]
[323671105,1714155778250,216.57,0.00010447,2]
[323671106,1714155780418,155.0,0.000109,2]
[323671108,1714155796505,135.8523524,0.000109,2]
[323671109,1714155796527,19.1476476,0.000109,2]
[323671111,1714155818145,154.86,0.0001041,2]
[323671112,1714155818375,154.86,0.00010419,2]
[323671113,1714155818416,155.0,0.000109,2]
[323671114,1714155818645,154.86,0.00010428,2]
[323671115,1714155818956,154.86,0.00010436,2]
[323671116,1714155819193,154.86,0.00010445,2]
[323671117,1714155819430,154.86,0.00010454,2]
[323671118,1714155819739,154.86,0.00010462,2]
[323671120,1714155836419,155.0,0.000109,2]
[323671124,1714155854433,155.0,0.000109,2]
[323671125,1714155872429,155.0,0.000109,2]
[323671126,1714155875115,2276.8323524,0.00011,3]
[323671127,1714155875137,473.1676476,0.00011,3]
[323671128,1714155879759,1245.61998393,0.0001108,2]
[323671129,1714155880862,735.33497776,0.0001108,2]
[323671130,1714155894434,155.0,0.000109,2]
[323671131,1714155905588,1255.96,0.00010348,2]
[323671132,1714155909621,134.91739071,0.0001108,2]
[323671156,1714156120740,453.63,8.312e-05,2]
[323671157,1714156162123,-533.66918456,0.00010228,2]
[323671165,1714156232035,-1000.0,0.00010128,2]
[323671166,1714156232046,-706.73913597,0.00010189,2]
[323671167,1714156232061,-165.44,0.0001019,2]
[323671168,1714156232070,-1018.29780186,0.000102,2]
[323671169,1714156232082,-294.49304824,0.000102,2]
[323671172,1714156234131,-899.11921331,0.000102,2]
[323671173,1714156234142,-1574.7093825,0.000102,2]
[323671174,1714156234154,-4835.86055409,0.000102,2]
[323671175,1714156234163,-150.0,0.00010226,2]
[323671176,1714156234172,-6183.62655458,0.00010228,2]
[323671177,1714156234181,-247.92115639,0.00010228,2]
[323671178,1714156234191,-1622.84842343,0.00010229,2]
[323671179,1714156234200,-200.0,0.0001023,2]
[323671180,1714156234210,-250.0,0.00010237,2]
[323671181,1714156234219,-11715.31794397,0.00010237,2]
[323671182,1714156234231,-992.13142098,0.00010237,2]
[323671183,1714156234243,-271.29633934,0.00010237,2]
[323671184,1714156234272,-4830.43984845,0.00010237,2]
[323671185,1714156234304,-457.08997388,0.00010237,2]
[323671186,1714156234316,-1684.59202001,0.00010237,2]
[323671187,1714156234327,-968.68711807,0.00010237,2]
[323671210,1714156238103,-1164.0753353,0.00010237,2]
[323671211,1714156238114,-639.53686723,0.00010268,2]
[323671212,1714156238212,-1185.51313277,0.00010268,2]
[323671213,1714156238222,-453.63,0.00010576,2]
[323671214,1714156238233,-2306.27688181,0.00010896,2]
[323671215,1714156238246,-155.0,0.000109,2]
[323671216,1714156238256,-377.664,0.000109,2]
[323671217,1714156238267,-205.6900163,0.00011078,2]
[323671218,1714156238276,-499.99,0.00011078,2]
[323671219,1714156238286,-2500.0,0.00011078,2]
[323671220,1714156238295,-314.2947,0.00011081,2]
[323671221,1714156238304,-436.34306323,0.00011082,2]
[323671222,1714156238326,-131.11303677,0.00011082,2]
[323671223,1714156238335,-3830.94,0.00011162,2]
[323671224,1714156238345,-7440.91901201,0.00011163,2]
[323671225,1714156238355,-481.52454952,0.00011176,2]
[323671226,1714156238365,-194.36220808,0.00011176,2]
[323671227,1714156238375,-1994.63391406,0.00011176,2]
[323671228,1714156238385,-2321.74176097,0.00011176,2]
[323671229,1714156238396,-236.4795796,0.00011177,2]
[323671230,1714156238405,-4322.85909605,0.00011177,2]
[323671231,1714156238415,-874.51,0.00011177,2]
[323671232,1714156238425,-1137.44,0.00011177,2]
[323671233,1714156238435,-690.45,0.00011177,2]
[323671235,1714156238444,-1697.88,0.00011177,2]
[323671238,1714156238454,-1278.41,0.00011177,2]
[323671240,1714156238463,-500.0,0.00011177,2]
[323671241,1714156238475,-1387.9,0.00011177,2]
[323671243,1714156238485,-500.0,0.00011177,2]
[323671244,1714156238495,-1969.87,0.00011177,2]
[323671245,1714156238504,-1592.66,0.00011177,2]
[323671246,1714156238515,-848.95,0.00011177,2]
[323671247,1714156238524,-4528.53,0.00011177,2]
[323671248,1714156238533,-1923.14,0.00011177,2]
[323671249,1714156238543,-2088.38,0.00011177,2]
[323671250,1714156238554,-2694.01,0.00011177,2]
[323671252,1714156238564,-2143.46,0.00011177,2]
[323671253,1714156238573,-909.29,0.00011177,2]
[323671254,1714156238583,-2264.33,0.00011177,2]
[323671255,1714156238594,-883.93,0.00011177,2]
[323671256,1714156238603,-935.61,0.00011177,2]
[323671257,1714156238614,-500.0,0.00011177,2]
[323671258,1714156238624,-500.0,0.00011177,2]
[323671259,1714156238634,-1001.58,0.00011177,2]
[323671260,1714156238644,-500.0,0.00011177,2]
[323671261,1714156238653,-4695.93,0.00011177,2]
[323671262,1714156238664,-500.0,0.00011177,2]
[323671263,1714156238673,-2139.9,0.00011177,2]
[323671264,1714156238682,-224.33588216,0.00011177,2]
[323671265,1714156238692,-500.0,0.00011177,2]
[323671266,1714156238701,-500.0,0.00011177,2]
[323671267,1714156238710,-500.0,0.00011177,2]